bitfinex/quotes_ETHUSD_20240714
["timestamp","ask_amount","ask_price","bid_price","bid_amount"]
[1720917382194,1.08721902,3187.2,3186.8,0.55]
[1720917382512,1.08721902,3187.2,3186.8,1.647]
[1720917382875,1.08710844,3187.1,3186.8,1.647]
[1720917383098,1.08710844,3187.0,3186.8,1.647]
[1720917383313,0.32872313,3187.7,3186.8,1.647]
[1720917383515,1.08711337,3187.6,3186.8,1.647]
[1720917383719,0.32872313,3187.7,3186.8,1.647]
[1720917383720,1.08711337,3187.5,3186.9,0.9067]
[1720917384013,1.08711337,3187.4,3186.9,0.9067]
[1720917384214,1.08711337,3187.3,3186.9,3.31494952]
[1720917384419,0.32872313,3187.7,3186.9,3.31494952]
[1720917384420,0.32872313,3187.7,3187.2,7.42]
[1720917384574,1.08702741,3187.6,3187.3,0.55]
[1720917384780,1.08702741,3187.5,3187.3,0.55]
[1720917385011,1.08702741,3187.6,3187.3,0.55]
[1720917385217,1.08702741,3187.5,3187.3,0.55]
[1720917385715,1.08703382,3187.4,3187.3,0.55]
[1720917386122,1.08703382,3187.4,3187.3,1.347]
[1720917387634,0.32872313,3187.7,3187.3,1.347]
[1720917387784,3.24316548,3189.2,3187.3,1.347]
[1720917387785,1.0868599,3187.6,3187.4,0.06273196]
[1720917387984,0.32869035,3188.2,3187.6,1.901]
[1720917388211,0.32869035,3188.2,3187.7,0.61273028]
[1720917388212,1.08678105,3188.1,3187.7,0.61273028]
[1720917388415,1.08678105,3188.0,3187.8,0.25137303]
[1720917388622,1.08678105,3188.1,3187.9,0.55]
[1720917388802,0.32869035,3188.2,3187.9,0.55]
[1720917388996,1.08680635,3188.1,3187.9,0.55]
[1720917389322,0.32869035,3188.2,3187.9,0.55]
[1720917389487,1.08681489,3188.1,3187.9,0.55]
[1720917389687,1.08681489,3188.0,3187.9,0.55]
[1720917391097,1.08681489,3188.0,3187.8,0.25137303]
[1720917391297,1.08681489,3187.9,3187.8,2.5607373]
[1720917391501,1.08681489,3188.1,3188.0,2.19573]
[1720917391796,0.32864004,3188.8,3188.2,2.19559]
[1720917392022,2.3751,3190.0,3188.4,1.901]
[1720917392023,1.08658183,3188.7,3188.4,1.901]
[1720917392223,1.08652316,3188.6,3188.5,2.5906]
[1720917392522,0.23751,3189.9,3188.6,0.55]
[1720917392685,1.08643421,3189.8,3188.6,0.55]
[1720917392885,1.08643421,3189.7,3188.6,0.55]
[1720917393091,1.08643421,3189.6,3188.7,0.533598]
[1720917393423,1.08643421,3189.5,3188.6,0.55]
[1720917393636,1.08643421,3189.8,3188.6,0.55]
[1720917393791,1.08643421,3189.7,3188.6,0.55]
[1720917393987,1.08643421,3189.6,3188.8,1.901]
[1720917394203,1.08643421,3189.5,3188.9,0.6127008]
[1720917394497,1.08643421,3189.4,3189.2,1.901]
[1720917394699,0.32860658,3190.3,3189.3,0.55]
[1720917395015,0.32860658,3190.3,3189.4,0.06269953]
[1720917395224,0.32860658,3190.3,3189.2,1.901]
[1720917395225,1.08631571,3190.2,3189.2,1.901]
[1720917395400,1.08631571,3190.1,3188.8,4.96369954]
[1720917395600,1.08631571,3190.2,3188.9,0.55]
[1720917395998,1.08631571,3190.2,3189.0,0.06270585]
[1720917396204,1.08631571,3190.2,3189.1,0.55]
[1720917396603,1.08631571,3190.2,3188.9,0.55]
[1720917397422,1.08631571,3190.2,3188.9,0.61270547]
[1720917397594,1.08631571,3190.2,3188.9,0.55]
[1720917398096,0.32860658,3190.3,3188.9,0.55]
[1720917398337,1.08642218,3190.2,3188.9,1.33592094]
[1720917398662,1.08642218,3190.1,3188.9,1.33592094]
[1720917398839,1.08642218,3190.0,3188.9,1.33592094]
[1720917399039,1.08642218,3189.9,3188.9,1.33592094]
[1720917399237,1.08642218,3189.8,3189.0,0.62369209]
[1720917399566,1.08642218,3189.7,3189.1,0.55]
[1720917399735,1.08642218,3189.6,3189.1,0.55]
[1720917399928,1.08642218,3190.2,3189.1,0.55]
[1720917400263,1.08642218,3190.1,3189.1,0.55]
[1720917400470,1.08642218,3190.0,3189.1,0.55]
[1720917400633,0.32860658,3190.3,3189.1,0.55]
[1720917400634,1.08642218,3189.9,3189.1,0.55]
[1720917400974,1.08642218,3189.8,3189.1,0.55]
[1720917401139,0.34699222,3189.7,3188.9,0.55]
[1720917401541,2.3835,3189.9,3188.9,0.55]
[1720917401542,1.08648061,3189.6,3188.9,0.55]
[1720917401862,2.3835,3189.9,3188.9,0.55]
[1720917402084,1.08646796,3189.8,3188.9,0.55]
[1720917402382,1.08646796,3189.7,3188.9,0.55]
[1720917402541,1.08646796,3189.6,3188.9,0.55]
[1720917402744,1.08646796,3189.5,3189.0,0.55137058]
[1720917402943,2.3835,3189.9,3189.1,0.55]
[1720917403182,1.0864172,3189.8,3189.1,0.55]
[1720917404483,2.3835,3189.9,3189.1,0.55]
[1720917404774,1.08642297,3189.8,3189.1,0.55]
[1720917404979,1.08642297,3189.7,3189.1,0.55]
[1720917405179,1.08642297,3189.6,3189.1,0.6127038]
[1720917405391,0.32860658,3190.3,3189.2,1.901]
[1720917405547,1.08637239,3190.2,3189.4,2.437]
[1720917405746,1.08637239,3190.1,3189.6,1.901]
[1720917406044,1.08637239,3190.0,3189.7,0.55]
[1720917406370,0.32860658,3190.3,3189.7,0.55]
[1720917406371,1.08627788,3189.9,3189.7,0.55]
[1720917406542,0.32860658,3190.3,3189.7,0.55]
[1720917406744,1.08627698,3190.2,3189.7,0.55]
[1720917406956,1.08627698,3190.1,3189.7,0.55]
[1720917407155,1.08627698,3190.2,3189.7,0.55]
[1720917407372,1.08627698,3190.2,3189.5,0.61269342]
[1720917407557,1.08627698,3190.2,3189.5,0.55]
[1720917407883,1.08629418,3190.1,3189.5,0.55]
[1720917408178,1.08629418,3190.0,3189.5,0.55]
[1720917408370,0.32860658,3190.3,3189.5,0.55]
[1720917408548,1.086286,3190.2,3189.6,0.2987]
[1720917408749,1.086286,3190.1,3189.7,0.55]
[1720917408949,1.086286,3190.0,3189.7,0.55]
[1720917409149,0.32854977,3190.2,3189.7,0.55]
[1720917409458,1.08625184,3190.1,3189.7,0.61269342]
[1720917409671,1.08625184,3190.0,3189.7,0.61269342]
[1720917409872,0.32854977,3190.2,3189.7,0.61269342]
[1720917410070,1.08624994,3190.1,3189.8,0.06269344]
[1720917410381,0.32854977,3190.2,3189.7,0.55]
[1720917410382,1.08624994,3190.0,3189.7,0.61269365]
[1720917410571,0.32854977,3190.2,3189.7,0.61269365]
[1720917410801,1.08624415,3190.1,3189.8,0.06269345]
[1720917410998,1.08624415,3190.1,3189.7,0.55]
[1720917410999,0.32854977,3190.2,3189.7,0.61269376]
[1720917411157,1.08626711,3190.1,3189.7,0.55]
[1720917411358,1.08626711,3190.0,3189.6,0.55]
[1720917411571,0.32854977,3190.2,3189.6,0.91766409]
[1720917411770,1.08625159,3190.1,3189.6,0.91766409]
[1720917412084,1.08625159,3190.0,3189.6,0.91766409]
[1720917412386,0.32854977,3190.2,3189.6,0.91766409]
[1720917412581,1.08623317,3190.1,3189.6,0.91766409]
[1720917412789,1.08623317,3190.0,3189.6,0.91766409]
[1720917412991,0.32854977,3190.2,3189.6,0.91766409]
[1720917413146,1.08624267,3190.1,3189.6,0.91766409]
[1720917413350,1.08624267,3190.0,3189.6,0.91766409]
[1720917413595,1.08624267,3189.9,3189.6,0.91766409]
[1720917413779,0.32854977,3190.2,3189.6,2.81866409]
[1720917413951,1.086186,3190.1,3189.7,0.28186641]
[1720917414152,0.32854977,3190.2,3189.8,0.55]
[1720917414352,1.08614831,3190.1,3189.8,0.61268808]
[1720917414675,0.32854977,3190.2,3189.8,0.61268808]
[1720917414985,1.08613644,3190.1,3189.8,0.61268808]
[1720917415192,0.32854977,3190.2,3189.8,0.55]
[1720917415193,1.0861834,3190.0,3189.8,0.55]
[1720917415395,0.32854977,3190.2,3189.8,0.55]
[1720917415688,1.08621652,3190.1,3189.3,0.25137038]
[1720917417199,1.08621652,3190.1,3189.0,2.437]
[1720917417405,1.08634816,3190.0,3189.1,0.55]
[1720917417707,1.08636044,3189.9,3189.1,0.55]
[1720917417866,1.08636044,3189.8,3189.1,0.55]
[1720917418070,1.08636044,3189.7,3189.2,0.2987]
[1720917418400,1.08636044,3189.6,3189.3,0.55]
[1720917418569,1.08636044,3189.5,3189.3,0.55]
[1720917418769,1.08636044,3189.4,3189.1,0.55]
[1720917419065,1.08636044,3189.3,3189.1,0.55]
[1720917419270,1.08636044,3190.0,3189.1,0.55]
[1720917419496,1.08636044,3190.0,3188.6,2.3952]
[1720917419497,1.08636044,3189.9,3189.0,0.55]
[1720917419722,1.08636044,3189.9,3188.9,0.55]
[1720917420470,1.08640763,3189.8,3188.9,0.55]
[1720917420827,1.08642955,3189.7,3188.9,0.55]
[1720917420972,0.28093498,3190.0,3188.9,0.7951]
[1720917420973,1.08642955,3189.6,3188.9,0.7951]
[1720917421171,1.08642955,3189.5,3188.9,3.7951]
[1720917421373,1.08642955,3189.4,3188.9,3.7951]
[1720917421699,1.08642955,3189.3,3188.9,3.7951]
[1720917421905,1.08642955,3189.2,3188.9,3.7951]
[1720917422101,1.08642955,3189.1,3189.0,0.56961]
[1720917422426,1.08642955,3189.1,3189.0,1.11961]
[1720917423001,1.08638361,3189.1,3189.0,1.11961]
[1720917424070,1.08638361,3189.1,3189.0,5.70985]
[1720917424273,0.32856223,3189.8,3189.0,8.70985]
[1720917424473,0.32856223,3189.8,3189.5,1.901]
[1720917424474,1.086261,3189.7,3189.5,1.901]
[1720917424687,1.086261,3189.6,3189.5,1.901]
[1720917425033,1.086261,3189.6,3189.5,2.451]
[1720917425322,0.32852392,3190.6,3189.6,2.19462]
[1720917425631,1.08603344,3190.5,3190.0,1.901]
[1720917425797,0.32852392,3190.6,3190.1,0.55]
[1720917425798,1.08603344,3190.4,3190.1,0.55]
[1720917426005,0.32852392,3190.6,3190.1,0.55]
[1720917426206,1.08609498,3190.5,3190.1,0.55]
[1720917426518,0.32852392,3190.6,3189.6,4.901]
[1720917426828,1.08611205,3190.5,3189.7,0.55]
[1720917428407,1.08611205,3190.4,3189.7,0.55]
[1720917428598,1.08611205,3190.5,3189.7,0.55]
[1720917428805,1.08611205,3190.4,3189.7,0.55]
[1720917429017,1.08611205,3190.5,3189.7,0.55]
[1720917429239,1.08630309,3190.4,3189.7,0.55]
[1720917429439,1.08625192,3190.3,3189.7,0.55]
[1720917429603,1.08625192,3190.2,3189.7,0.55]
[1720917429791,1.08625192,3190.1,3189.7,0.55]
[1720917429994,1.08625192,3190.0,3189.2,4.901]
[1720917430196,2.4808,3190.4,3189.2,4.901]
[1720917430496,1.44295711,3190.3,3189.2,5.687581]
[1720917430720,1.08625192,3190.2,3189.2,5.687581]
[1720917431031,1.08625192,3190.2,3188.4,2.19545]
[1720917431032,1.08625192,3190.2,3188.8,1.901]
[1720917431241,0.35670519,3190.3,3188.8,1.901]
[1720917431242,1.08625192,3190.1,3188.8,1.901]
[1720917431540,1.08625192,3190.0,3188.8,1.901]
[1720917431840,0.35670519,3190.3,3188.8,1.901]
[1720917431841,1.08625192,3190.2,3188.8,1.901]
[1720917432005,1.08625192,3190.1,3188.8,2.33062]
[1720917432226,0.35670519,3190.3,3188.9,0.55]
[1720917432438,1.08640392,3190.0,3188.9,0.55]
[1720917432751,1.08640392,3189.9,3188.9,0.55]
[1720917432917,1.08640392,3190.2,3188.9,0.55]
[1720917433118,1.08640392,3190.1,3188.9,0.55]
[1720917433339,1.08640392,3190.0,3188.9,0.55]
[1720917433517,1.08640392,3189.9,3188.9,0.55]
[1720917433742,1.08640392,3189.8,3188.9,0.55]
[1720917434021,1.08640392,3189.7,3188.9,1.077582]
[1720917434214,0.35670519,3190.3,3188.9,1.077582]
[1720917434215,1.08640392,3189.6,3188.9,0.55]
[1720917434445,1.08640392,3190.2,3188.9,0.61270591]
[1720917434745,1.08640392,3190.1,3188.9,0.61270591]
[1720917434950,1.08640392,3190.0,3188.9,0.61270591]
[1720917435148,1.08640392,3189.9,3188.9,0.61270591]
[1720917435459,1.08640392,3189.8,3188.9,1.34089059]
[1720917435627,1.08640597,3189.7,3188.9,1.34089059]
[1720917435866,1.08640597,3189.6,3188.9,1.34089059]
[1720917436025,1.08640597,3190.2,3188.9,1.34089059]
[1720917436231,1.08640597,3190.1,3188.9,1.34089059]
[1720917436427,1.08640597,3190.0,3189.0,0.62418906]
[1720917436641,1.08640597,3189.9,3189.1,0.61270595]
[1720917436841,0.35670519,3190.3,3189.1,0.61270595]
[1720917436842,1.08640597,3189.8,3189.1,0.61270595]
[1720917437042,1.08640597,3189.7,3189.1,0.55]
[1720917437350,1.08640597,3189.6,3189.1,0.55]
[1720917437559,1.08640597,3189.5,3189.1,0.55]
[1720917437730,0.35670519,3190.3,3189.0,0.55]
[1720917437731,1.08640597,3189.4,3189.0,0.55]
[1720917438070,1.08640597,3189.3,3189.0,0.55]
[1720917438369,1.08640597,3189.3,3188.8,4.901]
[1720917438370,1.08640597,3189.2,3188.8,4.901]
[1720917438524,3.80556436,3190.2,3188.9,0.72962]
[1720917438726,0.35670519,3190.3,3188.8,4.96371065]
[1720917439033,1.0864311,3190.2,3188.8,4.96371065]
[1720917439238,1.08642738,3190.1,3188.8,4.96371065]
[1720917439423,3.07912969,3190.3,3188.8,4.901]
[1720917439424,1.08642738,3190.0,3188.8,4.901]
[1720917439640,1.08642738,3189.9,3188.8,4.901]
[1720917439846,1.08642738,3189.8,3188.8,4.901]
[1720917440047,1.08642738,3190.1,3188.9,0.55]
[1720917440244,1.46731257,3190.0,3188.9,0.55]
[1720917440470,1.08642738,3189.9,3188.9,0.55]
[1720917440643,1.08642738,3189.8,3188.9,0.55]
[1720917442032,1.08646657,3189.7,3188.9,0.55]
[1720917442228,1.08646668,3189.6,3188.9,0.55]
[1720917442463,1.08646668,3189.5,3188.9,0.55]
[1720917442671,0.32858808,3189.9,3188.9,0.55]
[1720917442672,1.08646668,3189.4,3188.9,0.55]
[1720917442871,1.08646668,3189.8,3188.9,0.55]
[1720917443078,1.08647114,3189.7,3188.9,0.55]
[1720917443412,1.08647114,3189.6,3188.4,1.901]
[1720917443547,1.08647114,3189.6,3188.5,0.55]
[1720917443738,1.08647114,3189.6,3188.5,3.55]
[1720917444177,1.08647114,3189.5,3188.5,3.55]
[1720917444352,4.98570514,3189.7,3188.5,3.55]
[1720917444353,1.08647114,3189.6,3188.5,3.55]
[1720917444547,1.69368877,3189.5,3188.5,3.55]
[1720917444758,1.08647114,3189.4,3188.5,3.55]
[1720917445274,1.08656141,3189.3,3188.5,3.55]
[1720917445452,1.08656141,3189.2,3188.5,3.55]
[1720917445651,2.2632,3189.7,3188.6,0.588265]
[1720917445652,1.08656141,3189.1,3188.6,0.588265]
[1720917445839,1.08656141,3189.6,3188.7,0.55]
[1720917446035,1.08656141,3189.5,3188.7,0.55]
[1720917446265,1.08656141,3189.4,3188.6,0.55]
[1720917446460,1.08656141,3189.6,3188.6,0.55]
[1720917446740,1.6937626,3189.5,3188.6,0.55]
[1720917447041,1.08656141,3189.4,3188.6,0.55]
[1720917447263,1.08656141,3189.3,3188.0,1.901]
[1720917447458,0.60720119,3189.5,3187.9,2.4155]
[1720917447459,1.08656141,3189.4,3187.9,2.4155]
[1720917447777,1.08656141,3189.3,3187.9,2.65705]
[1720917447974,2.72225048,3189.5,3187.9,2.65705]
[1720917447975,1.08656141,3189.4,3187.9,2.65705]
[1720917448370,2.72225048,3189.5,3187.9,2.65705]
[1720917448564,1.35890714,3189.4,3188.0,0.55]
[1720917448764,1.08668209,3189.3,3188.0,3.55]
[1720917449861,1.08668209,3189.3,3188.0,0.55]
[1720917450191,6.07213257,3189.2,3188.0,0.55]
[1720917450393,1.08668209,3189.1,3188.0,0.55]
[1720917450699,1.08668209,3189.1,3187.4,2.4155]
[1720917450700,0.60721326,3189.0,3187.4,2.4155]
[1720917450924,1.08668209,3188.9,3187.5,0.55]
[1720917451672,2.2632,3189.2,3187.6,1.96373072]
[1720917451871,3.24316548,3189.6,3187.7,2.9655]
[1720917451872,1.08682449,3189.1,3187.7,2.9655]
[1720917452077,2.7184179,3189.5,3187.8,0.06272536]
[1720917452078,3.0,3189.5,3187.8,0.06272536]
[1720917452392,1.61306343,3189.4,3187.9,0.85282254]
[1720917452709,1.08674343,3189.3,3188.0,0.06272542]
[1720917452992,1.08674343,3189.3,3188.1,0.55]
[1720917453466,1.08674343,3189.3,3188.1,0.61272538]
[1720917454010,1.08674343,3189.3,3188.1,0.55]
[1720917454158,0.16130634,3189.2,3188.0,0.55]
[1720917454490,1.08674343,3189.1,3188.0,0.55]
[1720917454899,1.08672272,3189.0,3188.0,0.55]
[1720917455060,1.08672272,3188.9,3188.0,0.55]
[1720917455405,1.08672272,3188.8,3188.2,2.4155]
[1720917455558,1.08672272,3188.7,3188.3,0.86054061]
[1720917455760,1.08672272,3188.6,3188.3,0.86054061]
[1720917456006,0.32861993,3189.0,3188.3,0.86054061]
[1720917456178,0.32861993,3189.0,3188.4,0.32760406]
[1720917456179,1.08658307,3188.9,3188.4,0.32760406]
[1720917456381,0.32861993,3189.0,3188.4,0.32760406]
[1720917456382,1.08658307,3188.8,3188.5,0.61271708]
[1720917456582,1.08658307,3188.7,3188.5,0.55]
[1720917456823,1.08658307,3188.6,3188.5,0.55]
[1720917458072,1.08664021,3188.6,3188.4,0.32760406]
[1720917458308,1.08664021,3188.5,3188.2,2.4155]
[1720917458511,0.32861993,3189.0,3188.2,2.4155]
[1720917458512,1.08664021,3188.9,3188.3,0.55]
[1720917459783,1.08664021,3188.9,3188.2,2.4155]
[1720917459991,1.08664021,3188.9,3187.8,3.0]
[1720917459992,1.08664021,3188.9,3187.8,5.3551]
[1720917460315,1.08664021,3188.9,3187.9,0.55]
[1720917460492,1.08664021,3188.9,3188.0,7.71051]
[1720917460819,1.08664021,3188.9,3188.1,0.55]
[1720917461207,0.32861993,3189.0,3188.1,0.55]
[1720917461414,0.32861993,3189.0,3188.0,7.71051]
[1720917461415,1.0867566,3188.9,3188.0,7.71051]
[1720917461595,1.0867566,3188.8,3188.0,7.42]
[1720917461925,0.32861993,3189.0,3188.0,7.42]
[1720917461926,1.0867566,3188.7,3188.0,7.42]
[1720917462131,0.32861993,3189.0,3188.0,7.42]
[1720917462132,1.0867566,3188.6,3188.0,7.42]
[1720917462297,1.0867566,3188.9,3188.0,7.42]
[1720917463525,1.0867566,3188.9,3187.6,7.42]
[1720917463689,1.0867566,3188.9,3187.7,0.55]
[1720917464314,0.32861993,3189.0,3187.7,0.55]
[1720917464636,2.3564,3188.8,3187.7,0.55]
[1720917464929,1.43118646,3188.7,3187.7,0.55]
[1720917465134,1.08686153,3188.6,3187.7,0.55]
[1720917467528,0.34432493,3188.7,3187.7,0.55]
[1720917467742,0.34432493,3188.7,3187.6,7.42]
[1720917467743,1.08688307,3188.5,3187.6,7.42]
[1720917468026,1.08688307,3188.4,3187.6,7.42]
[1720917468252,2.3564,3188.5,3187.6,7.42]
[1720917468390,1.08688307,3188.4,3187.6,7.42]
[1720917469023,1.08688307,3188.4,3187.0,9.7751]
[1720917469192,1.08688307,3188.4,3187.1,0.0627448]
[1720917469743,1.08688307,3188.3,3187.1,0.0627448]
[1720917469927,1.08688307,3188.7,3187.3,2.3551]
[1720917470232,1.08688307,3188.6,3187.4,0.55]
[1720917470437,1.08688307,3188.7,3187.4,0.55]
[1720917470592,1.08688307,3188.5,3187.4,0.55]
[1720917470937,1.08692863,3188.4,3187.4,0.55]
[1720917471142,1.08692863,3188.3,3187.5,0.29051]
[1720917471448,1.08692863,3188.2,3187.6,0.55]
[1720917471609,1.08692863,3188.1,3187.6,0.55]
[1720917471810,1.08692863,3188.0,3187.4,0.55]
[1720917472021,1.08692863,3188.3,3187.5,0.29051]
[1720917472197,1.08692863,3188.3,3187.6,0.55]
[1720917473401,1.08692863,3188.3,3187.3,2.3551]
[1720917473630,1.08692863,3188.3,3187.4,0.55]
[1720917474070,0.32868379,3188.4,3187.4,0.55]
[1720917474227,0.32868379,3188.4,3187.5,0.29051]
[1720917474228,1.08692748,3188.3,3187.5,0.29051]
[1720917474425,1.08692748,3188.2,3187.5,0.29051]
[1720917474761,1.08692106,3188.1,3187.5,0.29051]
[1720917474970,1.08692106,3188.0,3187.0,7.42]
[1720917475138,1.08692106,3187.9,3187.0,7.42]
[1720917475343,0.32868379,3188.4,3187.0,7.42]
[1720917475344,1.08692106,3188.3,3187.0,7.42]
[1720917475556,1.08692106,3188.2,3187.0,8.58761]
[1720917475733,1.08692106,3188.1,3187.0,8.58761]
[1720917475932,1.08692106,3188.3,3187.0,8.58761]
[1720917477058,2.3154,3188.2,3187.0,8.58761]
[1720917477436,1.08707761,3188.1,3187.0,8.58761]
[1720917477633,1.08707761,3188.0,3187.1,1.094271]
[1720917477838,1.08707761,3187.9,3187.1,1.094271]
[1720917478170,1.08707761,3187.8,3187.1,1.094271]
[1720917478380,1.08707761,3187.7,3187.1,1.094271]
[1720917478602,1.08707761,3187.6,3187.1,1.094271]
[1720917478765,2.3154,3188.2,3187.0,7.42]
[1720917478766,1.08707761,3187.5,3187.2,0.8514271]
[1720917478971,1.08707761,3187.4,3187.2,0.8514271]
[1720917479168,1.08707761,3187.3,3187.2,0.8514271]
[1720917479797,0.32868379,3188.4,3187.3,2.3816]
[1720917479977,1.08695731,3188.3,3187.4,0.55]
[1720917480161,0.32868379,3188.4,3187.5,0.29316]
[1720917480162,1.08695731,3188.2,3187.5,0.29316]
[1720917480496,0.32868379,3188.4,3187.5,0.29316]
[1720917480704,1.08695628,3188.1,3187.5,0.29316]
[1720917480863,1.08695628,3188.0,3187.5,0.29316]
[1720917481058,0.32868379,3188.4,3187.5,0.29316]
[1720917481059,1.08695628,3187.9,3187.5,0.29316]
[1720917481293,1.08695628,3188.3,3187.5,0.29316]
[1720917481477,1.08695628,3188.3,3187.4,7.97]
[1720917482308,1.08695628,3188.3,3187.5,2.4443375]
[1720917482598,1.08695628,3188.3,3187.6,0.55]
[1720917482796,0.32868379,3188.4,3188.0,2.3816]
[1720917483001,1.08684008,3188.3,3188.1,0.61272662]
[1720917483199,0.32868379,3188.4,3188.2,0.29943266]
[1720917483508,0.32868379,3188.4,3188.3,0.55]
[1720917483713,1.41537526,3188.4,3188.3,0.55]
[1720917484968,1.41537526,3188.4,3188.3,2.9316]
[1720917485181,1.41537526,3188.4,3188.3,3.26097577]
[1720917485383,5.03119442,3190.0,3188.3,3.26097577]
[1720917485597,0.32860882,3188.7,3188.3,3.26097577]
[1720917485903,1.08660502,3188.6,3188.3,3.26097577]
[1720917486147,0.32860054,3188.9,3188.5,7.42]
[1720917486319,1.0865323,3188.8,3188.6,1.292]
[1720917486644,1.08653554,3188.7,3188.6,1.292]
[1720917489014,0.32860054,3188.9,3188.6,1.292]
[1720917489213,0.32860054,3188.9,3188.6,1.35471548]
[1720917489214,1.08652682,3188.8,3188.6,1.35471548]
[1720917489418,0.32860054,3188.9,3188.7,0.87747155]
[1720917489714,0.32860054,3188.9,3188.6,0.55]
[1720917489715,0.32860054,3188.9,3188.8,0.55]
[1720917489918,0.32860054,3188.9,3188.7,2.3816]
[1720917490226,0.32860054,3188.9,3188.8,0.55]
[1720917490630,1.415118,3188.9,3188.8,0.55]
[1720917492435,0.32860054,3188.9,3188.4,2.3816]
[1720917492606,0.32860054,3188.9,3188.5,0.55]
[1720917492805,0.32860054,3188.9,3188.0,1.901]
[1720917492806,1.0865477,3188.8,3188.0,4.2826]
[1720917493021,1.0865477,3188.8,3188.1,3.42826]
[1720917494119,1.0865477,3188.8,3188.2,0.55]
[1720917495044,1.0865477,3188.8,3188.2,7.97]
[1720917495724,1.08668777,3188.7,3188.2,7.97]
[1720917495924,1.08668777,3188.6,3188.2,7.97]
[1720917496116,1.08668777,3188.8,3188.2,7.97]
[1720917498856,0.32860054,3188.9,3188.2,7.97]
[1720917499150,1.08671086,3188.8,3188.2,7.97]
[1720917499370,0.32860054,3188.9,3188.2,7.42]
[1720917499648,1.08670998,3188.8,3188.2,7.42]
[1720917499839,1.08670998,3188.7,3188.2,8.70016]
[1720917500025,1.08670998,3188.6,3188.2,8.70016]
[1720917500242,1.08670998,3188.5,3188.2,8.70016]
[1720917500457,1.08670998,3188.4,3188.2,7.42]
[1720917500621,0.32860054,3188.9,3188.2,7.42]
[1720917500822,1.0866924,3188.8,3188.2,7.42]
[1720917501043,1.0866924,3188.7,3188.2,7.42]
[1720917501251,1.0866924,3188.6,3188.2,7.42]
[1720917501554,1.0866924,3188.5,3188.3,1.042]
[1720917501861,0.32860054,3188.9,3188.3,1.042]
[1720917502154,1.08665799,3188.8,3188.3,1.042]
[1720917502367,1.08665799,3188.7,3188.2,7.42]
[1720917502659,1.08665799,3188.6,3188.2,7.42]
[1720917502826,1.08665799,3188.8,3188.2,7.42]
[1720917503032,1.08665799,3188.5,3188.2,7.42]
[1720917503243,1.08667887,3188.4,3188.2,7.42]
[1720917503434,1.08672465,3188.3,3188.2,7.42]
[1720917505490,1.08680082,3188.3,3188.2,7.42]
[1720917507578,1.08680082,3188.3,3187.7,7.42]
[1720917507780,1.08680082,3188.2,3187.8,0.55]
[1720917508080,1.08680082,3188.1,3188.0,7.42]
[1720917508277,1.08680082,3188.1,3188.0,7.97]
[1720917508715,1.08674977,3188.1,3188.0,7.97]
[1720917509017,1.08674977,3188.1,3188.0,7.42]
[1720917510312,1.08674977,3188.1,3187.5,7.42]
[1720917510510,1.08674977,3188.0,3187.6,3.55]
[1720917510709,1.08674977,3188.3,3187.6,3.55]
[1720917511016,1.08674977,3188.2,3187.6,0.55]
[1720917511212,1.08674977,3188.3,3187.6,0.55]
[1720917512332,1.08692082,3188.2,3187.5,7.42]
[1720917512482,1.08692082,3188.1,3187.5,7.42]
[1720917512683,1.08692082,3188.2,3187.5,7.42]
[1720917515113,0.24274,3188.3,3187.5,7.42]
[1720917515114,1.08694294,3188.1,3187.5,7.42]
[1720917515315,1.08693607,3188.0,3187.5,7.42]
[1720917515612,1.08693607,3187.9,3187.5,7.42]
[1720917515814,1.08693607,3188.2,3187.5,7.42]
[1720917515982,1.08693607,3188.1,3187.5,7.42]
[1720917516404,1.08693607,3188.2,3187.6,0.55]
[1720917516606,1.08693607,3188.1,3187.7,2.3589]
[1720917516807,1.08693607,3188.0,3187.8,0.55]
[1720917517111,0.32862112,3188.7,3187.9,0.29089]
[1720917517295,0.32862112,3188.7,3187.8,0.55]
[1720917517296,1.08680469,3188.6,3188.0,0.55]
[1720917517494,1.08680469,3188.5,3187.8,0.55]
[1720917517818,1.08680469,3188.4,3187.8,0.55]
[1720917518009,1.08680469,3188.6,3187.8,0.55]
[1720917518204,1.08677728,3188.5,3187.9,0.29089]
[1720917518523,1.08677728,3188.4,3188.0,0.55]
[1720917519430,1.08677728,3188.4,3187.8,0.55]
[1720917519590,1.08677728,3188.4,3187.8,1.03099]
[1720917520101,1.08677728,3188.4,3187.4,2.19613]
[1720917520102,2.4646,3188.3,3186.6,2.3589]
[1720917520303,2.4646,3188.3,3185.9,4.55606]
[1720917520304,2.4646,3188.0,3185.9,4.55606]
[1720917520518,1.08677728,3187.9,3185.9,4.55606]
[1720917520821,5.18219758,3188.0,3186.0,0.645706]
[1720917520822,1.71367477,3187.8,3186.0,0.645706]
[1720917521025,1.08677728,3187.7,3186.0,0.645706]
[1720917521333,0.62689749,3187.8,3186.0,0.645706]
[1720917521491,1.08735153,3187.6,3186.0,0.645706]
[1720917521686,1.08735153,3187.6,3185.9,2.3589]
[1720917521687,3.55195153,3187.5,3185.9,2.3589]
[1720917521925,1.08735153,3187.4,3185.9,2.3589]
[1720917523029,1.08735153,3187.4,3185.9,5.3589]
[1720917523194,1.08735153,3187.4,3186.0,0.55]
[1720917523396,0.35519515,3187.3,3186.1,0.59089]
[1720917523625,1.08735153,3187.2,3186.1,0.59089]
[1720917524372,1.08735153,3187.2,3186.2,0.55]
[1720917524655,2.4646,3187.5,3186.2,0.55]
[1720917524656,1.08731143,3187.1,3186.2,0.55]
[1720917524951,1.08731143,3187.0,3186.3,0.06275607]
[1720917525153,0.62689749,3187.8,3186.4,0.80137561]
[1720917525364,1.08723872,3187.7,3186.4,0.80137561]
[1720917525519,1.08723872,3187.6,3186.4,0.80137561]
[1720917525719,5.4646,3187.9,3186.7,7.42]
[1720917525720,1.08723872,3187.5,3186.7,7.42]